fUSD/lending_fUSD_20250811
["ID","MTS","AMOUNT","RATE_DAILY","PERIOD"]
[378503205,1754887412438,-400.0,0.00015907,2]
[378503206,1754887412479,-383.74,0.00015908,2]
[378503207,1754887419267,-69.38,0.00015908,2]
[378503208,1754887419291,-17.75,0.00015908,2]
[378503209,1754887419851,200.0,0.00030037,120]
[378503210,1754887426274,-470.87,0.00015917,2]
[378503211,1754887426338,-101.75,0.00016187,2]
[378503212,1754887429349,23900.0,0.00015752,2]
[378503213,1754887441212,-49.66,0.00016187,2]
[378503214,1754887441250,-189.79259536,0.00016566,3]
[378503215,1754887448080,-400.0,0.00016566,3]
[378503216,1754887454944,-885.58086512,0.00016566,3]
[378503217,1754887461737,-539.16913488,0.00016566,3]
[378503218,1754887468548,-400.0,0.00016566,3]
[378503219,1754887475512,-85.45740464,0.00016566,3]
[378503220,1754887475575,-104.33519072,0.0001657,5]
[378503221,1754887481866,341.57,0.00015756,2]
[378503222,1754887489684,-508.84086512,0.0001657,5]
[378503224,1754887496253,-5.83519072,0.0001657,5]
[378503225,1754887496322,-380.98875344,0.0001657,5]
[378503226,1754887509869,-175.58,0.00016574,3]
[378503227,1754887514447,282.83,0.00015764,2]
[378503228,1754887517807,-505.76,0.00016574,3]
[378503229,1754887523970,-255.26,0.00016574,3]
[378503230,1754887531347,-176.45,0.00016574,3]
[378503231,1754887538811,-280.47773659,0.00016574,3]
[378503232,1754887541525,597.19,0.00015764,2]
[378503233,1754887546349,-288.87312853,0.00016574,3]
[378503234,1754887553160,170.0,0.00015764,7]
[378503235,1754887553276,-305.52,0.00016574,3]
[378503236,1754887562696,-156.07382804,0.00016574,3]
[378503239,1754887570575,-43.99469316,0.00016574,3]
[378503240,1754887570598,-312.01061368,0.00016574,3]
[378503241,1754887578331,-400.0,0.00016579,5]
[378503242,1754887585807,-260.13,0.00016579,5]
[378503243,1754887585838,-339.87,0.00016579,5]
[378503244,1754887592631,-339.87,0.00016583,3]
[378503245,1754887600174,-400.0,0.00016583,3]
[378503246,1754887607198,-498.96,0.00016583,3]
[378503247,1754887614491,-748.3,0.00016488,2]
[378503248,1754887623111,-58.87382804,0.00016488,2]
[378503249,1754887623308,-381.69980132,0.00016583,3]
[378503250,1754887624548,317.0,0.00030137,120]
[378503251,1754887630833,-542.36,0.00016583,3]
[378503252,1754887637663,-167.08,0.00016237,2]
[378503253,1754887637691,-255.59980132,0.00016583,3]
[378503254,1754887637731,-81.51039736,0.00016583,3]
[378503257,1754887645462,-400.0,0.00016588,5]
[378503258,1754887651337,-400.0,0.00016588,5]
[378503259,1754887658145,-200.0,0.00016588,5]
[378503260,1754887666247,-493.7,0.00016591,2]
[378503261,1754887673474,-282.53502726,0.00016491,2]
[378503262,1754887673516,-587.04994548,0.00016591,2]
[378503263,1754887680341,-119.25005452,0.00016591,2]
[378503264,1754887680370,-300.0,0.00016591,2]
[378503265,1754887680469,-620.71989096,0.00016592,3]
[378503267,1754887687622,-281.79,0.00016591,5]
[378503268,1754887687653,-718.21,0.00016591,5]
[378503269,1754887694931,-1481.2,0.00016592,3]
[378503274,1754887701744,-1.91989096,0.00016592,3]
[378503275,1754887701768,-396.16021808,0.00016592,3]
[378503276,1754887705267,1000.0,0.00015778,2]
[378503277,1754887709089,-695.84,0.00016601,3]
[378503278,1754887722536,-219.78,0.00016326,2]
[378503279,1754887722575,-173.62230012,0.00016601,3]
[378503280,1754887730560,-783.69,0.00016601,3]
[378503281,1754887738743,-317.35,0.00016601,3]
[378503282,1754887746411,-129.49769988,0.00016601,3]
[378503283,1754887746777,-256.08460024,0.0001661,3]
[378503284,1754887753282,-400.0,0.0001661,3]
[378503285,1754887760555,-163.72,0.0001661,3]
[378503286,1754887768029,-172.9,0.0001661,3]
[378503287,1754887774889,-888.46586762,0.0001661,3]
[378503288,1754887781683,-760.89,0.0001651,2]
[378503289,1754887789460,-400.0,0.0001651,2]
[378503290,1754887796351,-28.65927387,0.0001651,2]
[378503291,1754887796376,-342.68145226,0.0001651,2]
[378503292,1754887803155,-58.81046786,0.0001661,3]
[378503293,1754887803182,-160.01906428,0.0001661,3]
[378503294,1754887810339,-457.87080987,0.0001661,3]
[378503295,1754887810374,-6.61838026,0.00016612,5]
[378503296,1754887817132,-332.16,0.00016612,5]
[378503297,1754887824411,-177.84,0.00016612,5]
[378503300,1754887831588,-483.38161974,0.00016612,5]
[378503301,1754887831599,-1200.0,0.00016613,2]
[378503302,1754887831609,-300.0,0.00016613,2]
[378503303,1754887831619,-3095.72648798,0.00016614,2]
[378503304,1754887831650,-10504.42779756,0.00016614,2]
[378503305,1754887831659,-2500.0,0.00016618,3]
[378503306,1754887831669,-211.73953792,0.00016618,3]
[378503307,1754887831678,-90.56838368,0.00016627,3]
[378503308,1754887831690,-615.30690322,0.00016627,3]
[378503309,1754887831702,-1794.1247131,0.00016627,3]
[378503310,1754887831711,-964.75250401,0.00016636,3]
[378503311,1754887831912,-1132.87268275,0.00016636,3]
[378503312,1754887831925,-402.37481324,0.00016636,3]
[378503313,1754887831935,-2130.33850469,0.00016645,3]
[378503314,1754887831959,-369.66149531,0.00016645,3]
[378503315,1754887831978,-1715.0266241,0.00016654,3]
[378503316,1754887832001,-301.35969402,0.00016654,3]
[378503317,1754887832020,-418.54375762,0.00016654,3]
[378503330,1754887832160,-65.06992426,0.00016654,3]
[378503332,1754887832169,-2500.0,0.00016662,3]
[378503334,1754887832179,-2500.0,0.00016671,3]
[378503336,1754887832189,-2003.96887612,0.0001668,3]
[378503338,1754887832203,-496.03112388,0.0001668,3]
[378503340,1754887832212,-808.96887612,0.00016689,3]
[378503352,1754887837523,-1212.18063696,0.00016689,3]
[378503353,1754887837534,-478.85048692,0.00016689,3]
[378503354,1754887837543,-96.45586595,0.00016698,3]
[378503355,1754887837554,-840.66481868,0.00016698,3]
[378503356,1754887837565,-1562.87931537,0.00016698,3]
[378503357,1754887837574,-300.0,0.000167,6]
[378503358,1754887837583,-658.12068463,0.00016706,3]
[378503359,1754887837594,-1841.87931537,0.00016706,3]
[378503360,1754887837603,-250.225,0.0001671,2]
[378503361,1754887837616,-3029.65913488,0.00016714,2]
[378503362,1754887837625,-1.61159318,0.00016715,3]
[378503363,1754887837789,-2498.38840682,0.00016715,3]
[378503364,1754887837798,-481.6248525,0.00016724,3]
[378503365,1754887837809,-274.39523222,0.00016724,3]
[378503366,1754887837821,-1743.97991528,0.00016724,3]
[378503367,1754887837831,-408.02008472,0.0001673,2]
[378503368,1754887837903,-553.19256782,0.0001673,2]
[378503369,1754887837914,-544.4,0.0001673,2]
[378503370,1754887837957,-300.0,0.0001673,2]
[378503371,1754887837968,-519.62514764,0.0001673,2]
[378503507,1754887839556,-2028.63350569,0.0001673,2]
[378503509,1754887839565,-266.0491066,0.00016733,3]
[378503511,1754887839576,-824.22667869,0.00016733,3]
[378503513,1754887839588,-1136.40758294,0.00016733,3]
[378503518,1754887839622,-273.31663177,0.00016733,3]
[378503520,1754887839632,-1186.4528,0.00016733,2]
[378503522,1754887839641,-1546.96056823,0.00016742,2]
[378503530,1754887839705,-27900.19470853,0.00016742,2]
[378503532,1754887839716,-3288.16111176,0.00016742,2]
[378503534,1754887839725,-709.70902654,0.00016742,3]
[378503549,1754887839853,-1790.29097346,0.00016742,3]
[378503551,1754887839862,-5.08642041,0.0001675,3]
[378503553,1754887839873,-2255.18294099,0.0001675,3]
[378503616,1754887840469,659.7,0.00015771,2]
[378504089,1754887845474,-179.9193614,0.0001675,3]
[378504199,1754887852236,-59.8112772,0.0001675,3]
[378504200,1754887873042,-49.6687228,0.00016759,3]
[378504201,1754887876436,457.87080987,0.00016645,3]
[378504202,1754887922464,400.0,0.00016675,2]
[378504203,1754887963598,514.59919013,0.00015895,2]
[378504204,1754887963620,213.19080987,0.00015895,2]
[378504205,1754887995257,-727.79,0.00016689,2]
[378504206,1754887995278,-2450.3312772,0.00016759,3]
[378504207,1754887995300,-1000.0,0.00016761,5]
[378504208,1754887995322,-300.0,0.00016764,2]
[378504209,1754887995343,-2500.0,0.00016768,3]
[378504210,1754887995366,-151.41,0.00016772,2]
[378504211,1754887995388,-2500.0,0.00016777,3]
[378504212,1754887995409,-300.0,0.00016785,2]
[378504213,1754887995430,-1770.4687228,0.00016786,3]
[378504214,1754887998061,283.53919013,0.00015942,2]
[378504215,1754888046198,412.81127838,0.00016623,5]
[378504216,1754888046220,311.66605126,0.00016623,5]
[378504217,1754888046241,275.52267036,0.00016623,5]
[378504219,1754888127457,312.6810042,0.00015854,2]
[378504220,1754888133916,-7.33351914,0.00015925,2]
[378504221,1754888148860,-14.66703828,0.00015925,2]
[378504222,1754888190690,-42.14055742,0.00015925,2]
[378504223,1754888197503,-115.71888516,0.00015925,2]
[378504225,1754888225464,-4.33111484,0.00015925,2]
[378504226,1754888228243,166.00756879,0.00015832,2]
[378504227,1754888235056,-400.0,0.00015925,2]
[378504228,1754888242515,183.99151767,0.00015832,2]
[378504229,1754888242764,-286.85861804,0.00015925,2]
[378504230,1754888254485,-621.83,0.00015925,2]
[378504231,1754888261575,-185.26734884,0.00015925,2]
[378504232,1754888268186,-400.0,0.00015925,2]
[378504233,1754888270418,673.4853046,0.00015832,2]
[378504234,1754888275370,-159.96,0.00015925,2]
[378504235,1754888282804,-206.59596688,0.00015925,2]
[378504236,1754888285390,198.39,0.00015874,2]
[378504237,1754888296170,2465.44460474,0.00015866,2]
[378504238,1754888299212,-198.18495286,0.00015866,2]
[378504239,1754888308922,-136.756886,0.0001585,2]
[378504240,1754888308945,-152.113114,0.0001585,2]
[378504241,1754888316150,-400.0,0.00015857,2]
[378504242,1754888323635,-414.056228,0.00015857,2]
[378504244,1754888338743,-160.75613372,0.00015832,2]
[378504245,1754888346516,-191.67613372,0.00015741,2]
[378504246,1754888410594,-400.0,0.00015741,2]
[378504247,1754888413902,-693.50386628,0.00015741,2]
[378504248,1754888413927,-334.45229098,0.00015741,2]
[378504249,1754888413952,-1200.0,0.00015831,2]
[378504250,1754888413976,-300.0,0.00015831,2]
[378504251,1754888414000,-300.0,0.00015831,2]
[378504252,1754888414026,-28092.04384274,0.00015832,2]
[378504253,1754888414302,84.17516928,0.000141,14]
[378504254,1754888414324,402.14186812,0.000141,14]
[378504255,1754888414344,161.83970776,0.000141,14]
[378504256,1754888414366,205.248138,0.000141,14]
[378504257,1754888414387,550.59511684,0.000141,14]
[378504259,1754888433099,263.99,0.00013699,2]
[378504260,1754888462104,90.95015722,0.0001669,4]
[378504261,1754888462128,316.90945188,0.0001669,4]
[378504263,1754888495513,30.0,0.00016663,6]
[378504264,1754888495536,145.71961088,0.00016663,6]
[378504265,1754888522240,-300.0,0.00015288,2]
[378504266,1754888564471,-400.0,0.00015289,2]
[378504267,1754888571222,-250.0,0.00015285,2]
[378504268,1754888579752,-141.0,0.00015285,2]
[378504269,1754888579776,-118.0,0.00015285,2]
[378504270,1754888579923,185.37,0.00012048,2]
[378504271,1754888586527,-400.0,0.00015289,2]
[378504272,1754888595451,-226.76,0.00015289,2]
[378504273,1754888602499,-400.0,0.00015289,2]
[378504274,1754888611950,-685.83,0.00015289,2]
[378504275,1754888627357,-284.46,0.00015289,2]
[378504276,1754888629789,170.0,0.0001488,7]
[378504277,1754888634613,-231.831777,0.00015289,2]
[378504278,1754888644517,-400.0,0.00015289,2]
[378504279,1754888659862,-6750.0,0.00015289,2]
[378504280,1754888672016,-151.23,0.00015289,2]
[378504281,1754888683827,-151.0,0.00015289,2]
[378504282,1754888709591,465.83,0.00014876,2]
[378504283,1754888714756,150.0,0.00014326,2]
[378504284,1754888714797,150.0,0.00015122,2]
[378504285,1754888714831,150.0,0.00014857,2]
[378504286,1754888714907,150.0,0.00014591,2]
[378504287,1754888715743,150.0,0.00014326,2]
[378504288,1754888715780,150.0,0.00014326,2]
[378504289,1754888715827,150.0,0.00014724,2]
[378504290,1754888715940,150.0,0.00014644,2]
[378504291,1754888716005,150.0,0.00015122,2]
[378504292,1754888716052,150.0,0.00014963,2]
[378504293,1754888718094,174.7631854,0.00014326,2]
[378504294,1754888720584,-1.0,0.00015281,2]
[378504295,1754888720607,-149.0,0.00015281,2]
[378504296,1754888722224,150.0,0.00014326,2]
[378504297,1754888722368,150.0,0.00015122,2]
[378504298,1754888722462,150.0,0.00014326,2]
[378504299,1754888722505,150.0,0.00015122,2]
[378504300,1754888723018,150.0,0.00014326,2]
[378504301,1754888727912,155.22086425,0.00014326,2]
[378504302,1754888729265,150.0,0.00014326,2]
[378504303,1754888729328,150.0,0.00014724,2]
[378504304,1754888729405,150.0,0.00015122,2]
[378504305,1754888733681,150.0,0.00014326,2]
[378504306,1754888736425,150.0,0.00014326,2]
[378504307,1754888736472,150.0,0.00014857,2]
[378504308,1754888738272,150.0,0.00014326,2]
[378504309,1754888738736,736.94634777,0.00014864,2]
[378504310,1754888738757,300.10365223,0.00014864,2]
[378504311,1754888758458,1000.0,0.00014864,2]
[378504312,1754888770889,-7472.268223,0.00015289,2]
[378504313,1754888770922,-250.0,0.00015309,2]
[378504314,1754888770956,-169.48,0.00015329,2]
[378504315,1754888770993,-150.0,0.00015387,2]
[378504316,1754888771029,-150.0,0.00015387,2]
[378504317,1754888771065,-150.0,0.0001552,2]
[378504318,1754888771099,-150.0,0.0001552,2]
[378504319,1754888771290,-97.28689523,0.00015599,2]
[378504320,1754888819591,-52.71310477,0.00015599,2]
[378504321,1754888819621,-96.83722838,0.00015653,2]
[378504322,1754888819675,-53.16277162,0.00015653,2]
[378504323,1754888836252,-150.0,0.00015716,2]
[378504324,1754888836288,-100.0,0.00015719,2]
[378504325,1754888843045,-50.0,0.00015719,2]
[378504326,1754888843097,-420.0,0.00015729,2]
[378504327,1754888850752,-224.42,0.00015729,2]
[378504328,1754888857239,200.0,0.00014885,2]
[378504329,1754888858507,300.0,0.00015,5]
[378504330,1754888858748,-447.85,0.00015729,2]
[378504331,1754888860602,600.0,0.000151,5]
[378504332,1754888862706,1000.0,0.000152,5]
[378504333,1754888865222,1300.0,0.000153,5]
[378504334,1754888866922,1600.0,0.000154,5]
[378504335,1754888869056,300.0,0.000155,5]
[378504336,1754888871207,300.0,0.000156,5]
[378504337,1754888873264,300.0,0.000157,5]
[378504338,1754888876170,300.0,0.000158,5]
[378504339,1754888877499,796.0,0.000159,5]
[378504340,1754888883493,-73.03,0.00015729,2]
[378504341,1754888883516,-34.7,0.00015729,2]
[378504342,1754888890664,-40.79,0.0001573,2]
[378504343,1754888890688,-209.21,0.0001573,2]
[378504344,1754888898386,-11.49,0.0001573,2]
[378504345,1754888898414,-138.51,0.0001573,2]
[378504346,1754888906497,-150.0,0.00015735,2]
[378504347,1754888906528,-58.000756,0.00015738,2]
[378504348,1754888906581,-91.999244,0.00015738,2]
[378504349,1754888914969,-65.136976,0.00015738,2]
[378504350,1754888915085,-84.863024,0.00015738,2]
[378504351,1754888921780,3782.01674519,0.00014895,2]
[378504352,1754888921805,400.0,0.00014895,2]
[378504353,1754888921829,391.5,0.00014895,2]
[378504354,1754888921856,1804.65325481,0.00014895,2]
[378504355,1754888923367,-150.0,0.00015754,2]
[378504356,1754888923400,-124.01,0.00015765,2]
[378504357,1754888930366,-25.99,0.00015765,2]
[378504358,1754888930393,-98.28,0.00015781,2]
[378504359,1754888938385,-51.72,0.00015781,2]
[378504360,1754888938414,-146.56,0.00015797,2]
[378504361,1754888955199,-3.44,0.00015797,2]
[378504362,1754888955228,-150.0,0.00015805,2]
[378504363,1754888962658,-134.2,0.00015818,2]
[378504364,1754888976949,167.99,0.00014889,2]
[378504365,1754888986609,-59.8,0.00015818,2]
[378504368,1754889010744,-150.0,0.00015819,2]
[378504369,1754889010795,-150.0,0.00015819,2]
[378504370,1754889010844,-150.0,0.00015827,2]
[378504371,1754889010901,-809.78211038,0.00015827,2]
[378504372,1754889010932,-300.0,0.0001583,2]
[378504373,1754889010960,-1200.0,0.0001583,2]
[378504374,1754889010990,-130.43577924,0.00015831,2]
[378504375,1754889018999,-19.56422076,0.00015831,2]
[378504376,1754889019027,-6.28374643,0.00015831,2]
[378504385,1754889032273,-320.29041264,0.00015831,2]
[378504390,1754889032318,-28.01365298,0.00015831,2]
[378504392,1754889032328,-500.0,0.00015831,2]
[378504394,1754889032337,-345.94208858,0.00015831,2]
[378504395,1754889032347,-541.57965882,0.00015831,2]
[378504396,1754889032356,-500.0,0.00015831,2]
[378504397,1754889032365,-500.0,0.00015831,2]
[378504398,1754889032375,-262.74768836,0.00015831,2]
[378504399,1754889032385,-500.0,0.00015831,2]
[378504400,1754889032394,-500.0,0.00015831,2]
[378504401,1754889032403,-258.60238803,0.00015832,2]
[378504402,1754889032412,-25301.69528575,0.00015832,2]
[378504403,1754889032422,-21964.19016875,0.00015832,2]
[378504404,1754889032432,-163.49118687,0.00015832,2]
[378504405,1754889032442,-255.39257796,0.00015832,2]
[378504406,1754889032452,-150.0,0.00015846,2]
[378504407,1754889032461,-150.0,0.00015849,2]
[378504408,1754889032471,-150.0,0.00015853,2]
[378504409,1754889032480,-243.737,0.00015857,2]
[378504410,1754889032489,-4454.039,0.00015857,2]
[378504421,1754889032796,-1936.943772,0.00015857,2]
[378504422,1754889032813,-150.0,0.00015858,2]
[378504423,1754889032824,-506.6004424,0.00015866,2]
[378504424,1754889032833,-150.0,0.00015877,2]
[378504425,1754889032843,-150.0,0.0001588,2]
[378504426,1754889032852,-150.0,0.00015882,2]
[378504427,1754889032862,-150.0,0.00015893,2]
[378504428,1754889032871,-1000.0,0.000159,2]
[378504429,1754889032880,-617.0,0.000159,2]
[378504430,1754889032890,-150.0,0.000159,2]
[378504431,1754889032899,-150.0,0.00015906,2]
[378504432,1754889032909,-1751.77654811,0.00015915,2]
[378504433,1754889032918,-198.24,0.00015915,2]
[378504434,1754889032927,-1199.20597015,0.00015916,2]
[378504435,1754889032936,-151.0,0.00015916,2]
[378504436,1754889032947,-151.0,0.00015916,2]
[378504437,1754889032956,-151.0,0.00015916,2]
[378504438,1754889032965,-151.0,0.00015916,2]
[378504439,1754889032974,-151.0,0.00015916,2]
[378504440,1754889032983,-151.0,0.00015916,2]
[378504441,1754889032993,-162.95874486,0.00015916,2]
[378504442,1754889033002,-500.0,0.00015916,2]
[378504443,1754889033011,-150.0,0.00015918,2]
[378504444,1754889033020,-159.53898571,0.00015918,2]
[378504445,1754889033030,-285.01179623,0.00015918,2]
[378504446,1754889033039,-181.23637505,0.00015918,2]
[378504447,1754889033048,-175.86344871,0.00015918,2]
[378504448,1754889033058,-159.35052794,0.00015918,2]
[378504449,1754889033068,-150.0,0.00015918,2]
[378504450,1754889033077,-150.0,0.00015918,2]
[378504451,1754889033087,-195.14250327,0.00015918,2]
[378504452,1754889033097,-150.0,0.00015921,2]
[378504453,1754889033107,-150.0,0.00015924,2]
[378504454,1754889033116,-10584.85,0.00015924,2]
[378504455,1754889033126,-803.39094126,0.00015925,2]
[378504456,1754889033136,-174.27734537,0.00015925,2]
[378504457,1754889033145,-279.55534046,0.00015925,2]
[378504458,1754889033155,-93449.63875,0.00015925,2]
[378504459,1754889033190,-778.41667818,0.00015925,2]
[378504460,1754889033396,-674.599,0.00015925,2]
[378504461,1754889033426,-750.159,0.00015925,2]
[378504462,1754889033459,-18721.30152882,0.00015925,2]
[378504463,1754889033470,-520.20540491,0.00015925,2]
[378504464,1754889037974,-151.0,0.00015925,2]
[378504465,1754889037984,-64961.99093661,0.00015925,2]
[378504466,1754889038081,-2000.0,0.00015925,2]
[378504467,1754889038093,-2987.91624772,0.00015925,2]
[378504627,1754889039742,-424.122005,0.00015832,2]
[378504647,1754889039924,-1221.0,0.00015832,2]
[378504649,1754889039936,-932.96259569,0.00015832,2]
[378504651,1754889039945,-3970.32767028,0.00015925,2]
[378504663,1754889040045,-26465.89518222,0.00015925,2]
[378504667,1754889040076,-8645.85384206,0.00015925,2]
[378504670,1754889040087,-11755.686885,0.00015925,2]
[378504672,1754889040099,-10340.20085,0.00015925,2]
[378504677,1754889040135,-20974.20094,0.00015925,2]
[378504679,1754889040145,-12218.0,0.00015925,2]
[378504697,1754889040300,-12217.6,0.00015925,2]
[378504959,1754889043035,-425.72700797,0.00015925,2]
[378504961,1754889043047,-451.17015491,0.00015925,2]
[378504962,1754889043093,-73346.84336555,0.00015925,2]
[378504963,1754889043201,-1087.39854461,0.00015925,2]
[378504964,1754889043212,-1251.67644374,0.00015925,2]
[378505003,1754889046840,-1083.6826,0.00015925,2]
[378505004,1754889046851,-1632.97351,0.00015925,2]
[378505016,1754889046967,-1378068.25725877,0.00015925,2]
[378505019,1754889046978,-487.8399997,0.00015925,2]
[378505401,1754889053038,335.03629474,0.00021918,120]
[378505402,1754889057660,-125.72265463,0.00015925,2]
[378505403,1754889057818,-48.55469074,0.00015925,2]
[378505404,1754889064815,-22.61047711,0.00015311,2]
[378505405,1754889064841,-150.95952289,0.00015311,2]
[378505406,1754889071700,-196.52,0.00015924,2]
[378505408,1754889078750,-103.48,0.00015924,2]
[378505409,1754889078818,-10.58,0.00015925,2]
[378505410,1754889085313,-200.061611,0.00015844,2]
[378505411,1754889085345,-140.42,0.00015925,2]
[378505412,1754889085403,-65730.84605247,0.00015925,2]
[378505413,1754889092213,-194.99,0.00015607,2]
[378505414,1754889092256,-10.02,0.00015607,2]
[378505416,1754889108115,-688.43,0.00015607,2]
[378505417,1754889115517,-477.406208,0.00015607,2]
[378505418,1754889122294,-684.12,0.00015607,2]
[378505419,1754889129102,-753.49,0.00015607,2]
[378505420,1754889137526,-400.0,0.00015607,2]
[378505421,1754889145292,-549.764792,0.00015607,2]
[378505422,1754889145346,-292.580416,0.00015753,2]
[378505423,1754889153954,-7.419584,0.00015753,2]
[378505424,1754889153984,-152.110832,0.00015753,2]
[378505425,1754889154392,-147.889168,0.00015753,2]
[378505426,1754889161781,-270.75216752,0.000158,2]
[378505427,1754889161811,-400.0,0.00015818,2]
[378505428,1754889161871,-98.38566496,0.00015851,2]
[378505430,1754889168920,-198.38566496,0.00015851,2]
[378505431,1754889168943,-3.22867008,0.00015851,2]
[378505432,1754889177173,150.0,0.00015123,2]
[378505433,1754889177367,-300.0,0.00015899,2]
[378505434,1754889177394,-300.0,0.00015899,2]
[378505435,1754889177458,-233.61,0.000159,2]
[378505436,1754889177537,265.29522021,0.00015192,2]
[378505437,1754889184877,-172.74128494,0.0001526,2]
[378505438,1754889184904,-138.40743012,0.0001526,2]
[378505439,1754889191867,-103.08779009,0.00015329,2]
[378505440,1754889191890,-253.91441982,0.00015329,2]
[378505441,1754889193944,3598927.02630863,0.00030137,120]
[378505442,1754889200870,-420.44,0.00015466,2]
[378505443,1754889210690,-2.68,0.00015899,2]
[378505444,1754889210721,-297.32,0.00015899,2]
[378505445,1754889214852,3062.1719224,0.00015183,2]
[378505446,1754889214874,14.0880776,0.00015183,2]
[378505447,1754889219246,-441.51,0.000159,2]
[378505448,1754889228631,-360.44,0.000159,2]
[378505449,1754889235088,-401.51822279,0.000159,2]
[378505450,1754889243277,-779.56644558,0.000159,2]
[378505451,1754889251255,-58.71644558,0.00015507,2]
[378505452,1754889251281,-99.99355442,0.00015507,2]
[378505453,1754889258132,200.0,0.00015156,2]
[378505454,1754889259156,-264.34421768,0.00015832,2]
[378505455,1754889266661,-257.0,0.000157,2]
[378505456,1754889266690,-162.70002486,0.00015832,2]
[378505457,1754889266740,-98.15995028,0.00015832,2]
[378505458,1754889266974,751.02,0.00015134,2]
[378505459,1754889267192,751.02,0.00015142,2]
[378505460,1754889267626,751.02,0.0001515,2]
[378505461,1754889267692,751.02,0.00015158,2]
[378505462,1754889268038,751.02,0.00015166,2]
[378505463,1754889268265,751.02,0.00015174,2]
[378505464,1754889268469,561.91231982,0.00015182,2]
[378505465,1754889268505,189.10768018,0.00015182,2]
[378505466,1754889268683,751.02,0.0001519,2]
[378505467,1754889268911,751.02,0.00015198,2]
[378505468,1754889269112,751.02,0.00015206,2]
[378505469,1754889269524,751.02,0.00015214,2]
[378505470,1754889269748,751.02,0.00015222,2]
[378505471,1754889275225,-576.61,0.0001523,2]
[378505472,1754889280961,150.0,0.00015127,2]
[378505497,1754889291477,-53.38,0.0001523,2]
[378505498,1754889291542,-121.03,0.0001523,2]
[378505501,1754889298481,-203.07,0.00015238,2]
[378505507,1754889307118,-393.34,0.00015238,2]
[378505518,1754889315242,-154.61,0.00015238,2]
[378505519,1754889315276,-90.78,0.00015246,2]
[378505542,1754889323422,-196.81,0.00015246,2]
[378505568,1754889338574,-290.94,0.00015246,2]
[378505571,1754889344659,737.96,0.00015127,2]
[378505572,1754889345058,449.95271724,0.00015127,2]
[378505573,1754889345081,192.63728276,0.00015127,2]
[378505575,1754889352538,192.55222464,0.0001517,2]
[378505576,1754889355213,-141.483104,0.00015246,2]
[378505577,1754889355238,-31.006896,0.00015246,2]
[378505604,1754889362887,-56.4,0.00015254,2]
[378505605,1754889362919,-694.62,0.00015254,2]
[378505632,1754889378820,-218.95,0.00015262,2]
[378505633,1754889379380,250.79,0.00013699,2]
[378505640,1754889387710,-397.05,0.00015262,2]
[378505644,1754889395446,-135.02,0.00015262,2]
[378505645,1754889395502,-29.96,0.0001527,2]
[378505668,1754889403360,-535.41710884,0.0001527,2]
[378505689,1754889410901,-185.64289116,0.0001527,2]
[378505690,1754889410947,-39.17421768,0.00015278,2]
[378505694,1754889418805,-254.12289116,0.00015278,2]
[378505703,1754889427056,-300.0,0.00015278,2]
[378505714,1754889430039,1558.44,0.00015203,2]
[378505791,1754889467103,-157.72289116,0.00015278,2]
[378505792,1754889467154,-76.71421768,0.00015286,2]
[378505795,1754889475259,-400.0,0.00015286,2]
[378505828,1754889483644,-156.06,0.00015221,2]